[Event "9th RTU Rapid 2019"]
[Site "Riga"]
[Date "2019.08.04"]
[Round "8.10"]
[White "Ioannidis, Evgenios"]
[Black "Lavendelis, Egons"]
[Result "1/2-1/2"]
[ECO "A16"]
[WhiteElo "2134"]
[BlackElo "2292"]
[Annotator "NA"]
[PlyCount "89"]
[EventDate "2019.08.05"]
[EventType "swiss"]
[EventCountry "LAT"]
[SourceTitle "playchess.com"]
[Source "ChessBase"]
[SourceQuality "1"]
[TimeControl "5400+30"]

1. Nf3 {[%emt 1:15:24]} Nf6 {[%emt 1:15:23]} 2. c4 {[%emt 0:00:27]} g6 {[%emt 0:00:26]} 3. Nc3 {[%emt 0:00:31]} d5 {[%emt 0:00:26]} 4. e3 {[%emt 0:00:31]} Bg7 {[%emt 0:00:28]} 5. b3 {[%emt 0:01:26]} Ne4 {[%emt 0:01:46]} 6. Bb2 {[%emt 0:00:28]} Nxc3 {[%emt 0:00:49]} 7. Bxc3 {[%emt 0:00:28]} Bxc3 {[%emt 0:00:28]} 8. dxc3 {[%emt 0:00:26]} c6 {[%emt 0:00:35]} 9. Qd4 {[%emt 0:01:06]} O-O {[%emt 0:00:29]} 10. Rd1 {[%emt 0:00:27]} e6 {[%emt 0:00:55]} 11. h4 {[%emt 0:00:33]} Nd7 {[%emt 0:01:05]} 12. cxd5 {[%emt 0:00:37]} cxd5 {[%emt 0:00:29]} 13. h5 {[%emt 0:01:12]} Qf6 {[%emt 0:00:37]} 14. hxg6 {[%emt 0:01:46]} hxg6 {[%emt 0:00:54]} 15. c4 {[%emt 0:00:53]} dxc4 {[%emt 0:03:39]} 16. Bxc4 {[%emt 0:00:27]} b6 {[%emt 0:00:30]} 17. Bb5 {[%emt 0:02:49]} Qxd4 {[%emt 0:00:37]} 18. Rxd4 {[%emt 0:00:26]} Nf6 {[%emt 0:00:29]} 19. Bc6 {[%emt 0:00:40]} Rb8 {[%emt 0:00:30]} 20. e4 {[%emt 0:00:26]} Ba6 {[%emt 0:02:42]} 21. b4 {[%emt 0:02:38]} Rbd8 {[%emt 0:02:27]} 22. e5 {[%emt 0:02:48]} Rxd4 {[%emt 0:00:29]} 23. Nxd4 {[%emt 0:00:26]} Ng4 {[%emt 0:01:22]} 24. b5 {[%emt 0:01:11]} Bc8 {[%emt 0:00:27]} 25. Nf3 {[%emt 0:00:43]} Rd8 {[%emt 0:01:09]} 26. Rh4 {[%emt 0:00:26]} f5 {[%emt 0:00:26]} 27. exf6 {[%emt 0:00:26]} Nxf6 {[%emt 0:00:26]} 28. Ne5 {[%emt 0:00:44]} Nd5 {[%emt 0:01:57]} 29. Nxg6 {[%emt 0:01:38]} Kg7 {[%emt 0:00:25]} 30. Bxd5 {[%emt 0:00:53]} Rxd5 {[%emt 0:00:42]} 31. Ne7 {[%emt 0:00:26]} Re5+ {[%emt 0:00:27]} 32. Kf1 {[%emt 0:00:27]} Bd7 {[%emt 0:00:48]} 33. a4 {[%emt 0:00:38]} a6 {[%emt 0:00:39]} 34. Rd4 {[%emt 0:00:50]} Be8 {[%emt 0:00:26]} 35. Nc6 {[%emt 0:01:00]} Rc5 {[%emt 0:00:49]} 36. Rd6 {[%emt 0:00:26]} axb5 {[%emt 0:00:36]} 37. axb5 {[%emt 0:00:26]} Kf6 {[%emt 0:00:39]} 38. Nd4 {[%emt 0:00:44]} Bxb5+ {[%emt 0:00:27]} 39. Ke1 {[%emt 0:00:30]} Re5+ {[%emt 0:00:42]} 40. Kd2 {[%emt 0:00:32]} Bf1 {[%emt 0:00:31]} 41. g4 {[%emt 0:00:36]} b5 {[%emt 0:00:27]} 42. f4 {[%emt 0:01:10]} Re4 {[%emt 0:00:29]} 43. f5 {[%emt 0:00:28]} Ke5 {[%emt 0:00:42]} 44. Nxb5 {[%emt 0:00:28]} Bxb5 {[%emt 0:00:30]} 45. Rxe6+ {[%emt 0:00:27]} 1/2-1/2

[Event "9th RTU Rapid 2019"]
[Site "Riga"]
[Date "2019.08.04"]
[Round "8.11"]
[White "Grinev, Valeriy"]
[Black "Shailesh, Dravid"]
[Result "1-0"]
[ECO "E97"]
[WhiteElo "2287"]
[BlackElo "2134"]
[Annotator "NA"]
[PlyCount "123"]
[EventDate "2019.08.05"]
[EventType "swiss"]
[EventCountry "LAT"]
[SourceTitle "playchess.com"]
[Source "ChessBase"]
[SourceQuality "1"]
[TimeControl "5400+30"]

1. d4 {[%emt 1:15:25]} Nf6 {[%emt 1:15:25]} 2. c4 {[%emt 0:00:30]} g6 {[%emt 0:00:30]} 3. Nc3 {[%emt 0:00:30]} Bg7 {[%emt 0:00:30]} 4. e4 {[%emt 0:00:30]} d6 {[%emt 0:00:30]} 5. Be2 {[%emt 0:00:30]} O-O {[%emt 0:00:30]} 6. Nf3 {[%emt 0:00:30]} e5 {[%emt 0:00:30]} 7. O-O {[%emt 0:00:32]} Nc6 {[%emt 0:00:30]} 8. d5 {[%emt 0:00:30]} Ne7 {[%emt 0:00:30]} 9. b4 {[%emt 0:00:30]} Nh5 {[%emt 0:00:30]} 10. g3 {[%emt 0:00:30]} a5 {[%emt 0:00:30]} 11. bxa5 {[%emt 0:00:30]} Rxa5 {[%emt 0:00:30]} 12. Nd2 {[%emt 0:00:32]} Nf6 {[%emt 0:00:30]} 13. Nb3 {[%emt 0:00:30]} Ra8 {[%emt 0:00:30]} 14. c5 {[%emt 0:00:31]} Ne8 {[%emt 0:00:30]} 15. a4 {[%emt 0:01:03]} f5 {[%emt 0:00:35]} 16. Ba3 {[%emt 0:00:42]} h5 {[%emt 0:00:54]} 17. a5 {[%emt 0:00:52]} f4 {[%emt 0:01:13]} 18. Nd2 {[%emt 0:00:51]} dxc5 {[%emt 0:01:18]} 19. Bxc5 {[%emt 0:00:44]} Nd6 {[%emt 0:00:30]} 20. Nb5 {[%emt 0:00:59]} Bh6 {[%emt 0:00:30]} 21. Nxd6 {[%emt 0:01:10]} cxd6 {[%emt 0:00:30]} 22. Bb4 {[%emt 0:00:30]} Bh3 {[%emt 0:00:58]} 23. Nc4 {[%emt 0:00:30]} Bxf1 {[%emt 0:00:39]} 24. Bxf1 {[%emt 0:00:30]} fxg3 {[%emt 0:01:49]} 25. hxg3 {[%emt 0:00:30]} Rf6 {[%emt 0:00:30]} 26. Bh3 {[%emt 0:00:34]} Qc7 {[%emt 0:00:36]} 27. Qd3 {[%emt 0:00:42]} b5 {[%emt 0:00:51]} 28. Nb6 {[%emt 0:01:00]} Raf8 {[%emt 0:00:33]} 29. Rf1 {[%emt 0:00:34]} Rf3 {[%emt 0:01:04]} 30. Qe2 {[%emt 0:01:11]} Rb3 {[%emt 0:00:37]} 31. Be1 {[%emt 0:01:12]} b4 {[%emt 0:00:58]} 32. Kg2 {[%emt 0:02:15]} Kh7 {[%emt 0:00:55]} 33. Nd7 {[%emt 0:01:13]} Rd8 {[%emt 0:00:49]} 34. Qb5 {[%emt 0:00:36]} Qc2 {[%emt 0:00:30]} 35. Kh2 {[%emt 0:00:57]} h4 {[%emt 0:00:40]} 36. Bg2 {[%emt 0:01:06]} Rb2 {[%emt 0:01:03]} 37. Nf6+ {[%emt 0:00:54]} Kg7 {[%emt 0:00:30]} 38. Ng4 {[%emt 0:00:38]} hxg3+ {[%emt 0:00:30]} 39. Kg1 {[%emt 0:00:30]} b3 {[%emt 0:01:07]} 40. Qb6 {[%emt 0:01:04]} Rd7 {[%emt 0:00:40]} 41. Nxh6 {[%emt 0:01:43]} Kxh6 {[%emt 0:00:39]} 42. Bh3 {[%emt 0:00:30]} g2 {[%emt 0:00:59]} 43. Qe3+ {[%emt 0:00:34]} Kg7 {[%emt 0:00:30]} 44. Kxg2 {[%emt 0:00:30]} Rc7 {[%emt 0:00:32]} 45. Bb4 {[%emt 0:00:41]} Rb1 {[%emt 0:02:31]} 46. Rxb1 {[%emt 0:00:45]} Qxb1 {[%emt 0:00:30]} 47. Bxd6 {[%emt 0:00:33]} Rc1 {[%emt 0:00:30]} 48. Bxe5+ {[%emt 0:01:13]} Kh7 {[%emt 0:00:30]} 49. Qf3 {[%emt 0:01:23]} Nf5 {[%emt 0:01:52]} 50. Bxf5 {[%emt 0:00:34]} Rg1+ {[%emt 0:00:32]} 51. Kh2 {[%emt 0:00:30]} gxf5 {[%emt 0:00:32]} 52. Qh5+ {[%emt 0:00:30]} Kg8 {[%emt 0:00:30]} 53. Qe8+ {[%emt 0:00:30]} Kh7 {[%emt 0:00:30]} 54. Qf7+ {[%emt 0:00:47]} Kh6 {[%emt 0:00:35]} 55. Bf4+ {[%emt 0:00:30]} Rg5 {[%emt 0:00:30]} 56. Qf6+ {[%emt 0:00:30]} Kh7 {[%emt 0:00:30]} 57. Qxg5 {[%emt 0:00:30]} Qxe4 {[%emt 0:00:30]} 58. Qh4+ {[%emt 0:00:32]} Kg8 {[%emt 0:00:30]} 59. Qg3+ {[%emt 0:00:30]} Kf7 {[%emt 0:00:30]} 60. Be5 {[%emt 0:00:30]} f4 {[%emt 0:00:31]} 61. Qg7+ {[%emt 0:00:32]} Ke8 {[%emt 0:00:30]} 62. d6 {[%emt 0:01:07]} 1-0

[Event "9th RTU Rapid 2019"]
[Site "Riga"]
[Date "2019.08.04"]
[Round "8.12"]
[White "Reizniece-Ozola, Dana"]
[Black "Rudovskii, Filipp"]
[Result "1-0"]
[ECO "A16"]
[WhiteElo "2261"]
[BlackElo "2127"]
[Annotator "NA"]
[PlyCount "61"]
[EventDate "2019.08.05"]
[EventType "swiss"]
[EventCountry "LAT"]
[SourceTitle "playchess.com"]
[Source "ChessBase"]
[SourceQuality "1"]
[TimeControl "5400+30"]

1. c4 {[%emt 1:15:21]} Nf6 {[%emt 1:15:22]} 2. Nc3 {[%emt 0:00:27]} d5 {[%emt 0:00:29]} 3. cxd5 {[%emt 0:00:28]} Nxd5 {[%emt 0:00:27]} 4. g3 {[%emt 0:00:31]} g6 {[%emt 0:00:33]} 5. Bg2 {[%emt 0:00:26]} Nb6 {[%emt 0:00:26]} 6. Nf3 {[%emt 0:00:37]} Bg7 {[%emt 0:00:28]} 7. h4 {[%emt 0:00:34]} h5 {[%emt 0:00:38]} 8. O-O {[%emt 0:00:39]} O-O {[%emt 0:00:29]} 9. d4 {[%emt 0:01:04]} Nc6 {[%emt 0:00:29]} 10. d5 {[%emt 0:00:57]} Na5 {[%emt 0:00:26]} 11. Ng5 {[%emt 0:00:42]} Nac4 {[%emt 0:01:00]} 12. Qc2 {[%emt 0:01:01]} Bf5 {[%emt 0:01:54]} 13. e4 {[%emt 0:00:35]} Bg4 {[%emt 0:00:37]} 14. b3 {[%emt 0:00:35]} Ne5 {[%emt 0:00:34]} 15. f4 {[%emt 0:01:33]} Ned7 {[%emt 0:00:35]} 16. Bb2 {[%emt 0:00:31]} c6 {[%emt 0:03:03]} 17. dxc6 {[%emt 0:00:49]} bxc6 {[%emt 0:00:27]} 18. e5 {[%emt 0:00:41]} Nc5 {[%emt 0:01:36]} 19. Nce4 {[%emt 0:06:48]} Nd3 {[%emt 0:00:47]} 20. Bc3 {[%emt 0:00:32]} Nc8 {[%emt 0:05:23]} 21. Kh2 {[%emt 0:01:21]} f6 {[%emt 0:01:24]} 22. Rad1 {[%emt 0:00:39]} Bxd1 {[%emt 0:00:32]} 23. Rxd1 {[%emt 0:00:26]} fxg5 {[%emt 0:00:27]} 24. Rxd3 {[%emt 0:00:26]} Qe8 {[%emt 0:01:02]} 25. Nxg5 {[%emt 0:00:37]} e6 {[%emt 0:01:24]} 26. Bb4 {[%emt 0:00:48]} Ne7 {[%emt 0:01:46]} 27. Bxe7 {[%emt 0:01:09]} Qxe7 {[%emt 0:00:31]} 28. Rd6 {[%emt 0:00:28]} Rf5 {[%emt 0:00:54]} 29. Rxe6 {[%emt 0:00:34]} Qf8 {[%emt 0:00:26]} 30. Rxg6 {[%emt 0:00:45]} Rd8 {[%emt 0:00:17]} 31. Ne6 {[%emt 0:00:55]} 1-0

[Event "9th RTU Rapid 2019"]
[Site "Riga"]
[Date "2019.08.04"]
[Round "8.13"]
[White "Raghavi, N.."]
[Black "Wedda, Dries"]
[Result "1-0"]
[ECO "A08"]
[WhiteElo "2068"]
[BlackElo "2234"]
[Annotator "NA"]
[PlyCount "77"]
[EventDate "2019.08.05"]
[EventType "swiss"]
[EventCountry "LAT"]
[SourceTitle "playchess.com"]
[Source "ChessBase"]
[SourceQuality "1"]
[TimeControl "5400+30"]

1. g3 {[%emt 1:15:22]} c5 {[%emt 1:15:25]} 2. Bg2 {[%emt 0:00:28]} g6 {[%emt 0:00:26]} 3. Nf3 {[%emt 0:00:29]} Bg7 {[%emt 0:00:26]} 4. O-O {[%emt 0:00:30]} Nc6 {[%emt 0:00:25]} 5. c3 {[%emt 0:00:40]} e5 {[%emt 0:00:36]} 6. e4 {[%emt 0:00:33]} Nge7 {[%emt 0:01:30]} 7. d3 {[%emt 0:00:42]} O-O {[%emt 0:00:29]} 8. Nbd2 {[%emt 0:00:30]} d5 {[%emt 0:00:45]} 9. exd5 {[%emt 0:02:08]} Nxd5 {[%emt 0:00:27]} 10. Re1 {[%emt 0:00:26]} Re8 {[%emt 0:00:57]} 11. Nc4 {[%emt 0:01:03]} h6 {[%emt 0:02:05]} 12. a4 {[%emt 0:01:26]} Bf5 {[%emt 0:01:09]} 13. Nh4 {[%emt 0:00:53]} Be6 {[%emt 0:00:34]} 14. Qe2 {[%emt 0:01:38]} Qd7 {[%emt 0:00:44]} 15. Nf3 {[%emt 0:01:04]} Bh3 {[%emt 0:01:17]} 16. Bh1 {[%emt 0:00:39]} Rad8 {[%emt 0:01:01]} 17. Nfd2 {[%emt 0:00:59]} f5 {[%emt 0:01:03]} 18. Nb3 {[%emt 0:01:00]} Bf8 {[%emt 0:01:30]} 19. Bd2 {[%emt 0:02:25]} Nb6 {[%emt 0:00:49]} 20. a5 {[%emt 0:02:04]} Nxc4 {[%emt 0:00:49]} 21. dxc4 {[%emt 0:00:27]} Bg4 {[%emt 0:01:12]} 22. f3 {[%emt 0:01:09]} Bh5 {[%emt 0:01:10]} 23. Be3 {[%emt 0:01:22]} Nd4 {[%emt 0:00:36]} 24. Qd1 {[%emt 0:01:30]} Nxb3 {[%emt 0:00:57]} 25. Qxb3 {[%emt 0:00:26]} e4 {[%emt 0:00:32]} 26. Rad1 {[%emt 0:01:07]} Qc7 {[%emt 0:03:08]} 27. Rxd8 {[%emt 0:00:32]} Qxd8 {[%emt 0:00:28]} 28. fxe4 {[%emt 0:00:28]} Qd3 {[%emt 0:01:21]} 29. Qxb7 {[%emt 0:00:31]} fxe4 {[%emt 0:01:01]} 30. Qd5+ {[%emt 0:00:42]} Qxd5 31. cxd5 {[%emt 0:00:27]} c4 {[%emt 0:00:55]} 32. Bxa7 {[%emt 0:00:40]} Rd8 {[%emt 0:01:12]} 33. Bxe4 {[%emt 0:00:38]} g5 {[%emt 0:00:41]} 34. Bb6 {[%emt 0:00:35]} Rb8 {[%emt 0:00:32]} 35. Bf5 {[%emt 0:00:46]} Bf7 {[%emt 0:00:33]} 36. Be6 {[%emt 0:00:30]} Bxe6 {[%emt 0:00:41]} 37. Rxe6 {[%emt 0:00:30]} Kf7 {[%emt 0:00:26]} 38. Kf1 {[%emt 0:00:31]} Ra8 {[%emt 0:00:35]} 39. Rc6 {[%emt 0:00:34]} 1-0

[Event "9th RTU Rapid 2019"]
[Site "Riga"]
[Date "2019.08.04"]
[Round "8.14"]
[White "Hasani, Takin"]
[Black "Vedrickas, Tautvydas"]
[Result "0-1"]
[ECO "A45"]
[WhiteElo "1849"]
[BlackElo "2231"]
[Annotator "NA"]
[PlyCount "58"]
[EventDate "2019.08.05"]
[EventType "swiss"]
[EventCountry "LAT"]
[SourceTitle "playchess.com"]
[Source "ChessBase"]
[SourceQuality "1"]
[TimeControl "5400+30"]

1. d4 {[%emt 1:15:22]} Nf6 {[%emt 1:15:34]} 2. Bf4 {[%emt 0:00:27]} g6 {[%emt 0:00:43]} 3. Nc3 {[%emt 0:00:26]} c5 {[%emt 0:00:59]} 4. d5 {[%emt 0:00:52]} d6 {[%emt 0:00:31]} 5. e4 {[%emt 0:00:34]} Bg7 {[%emt 0:00:28]} 6. Qd2 {[%emt 0:00:26]} h6 {[%emt 0:00:46]} 7. Bb5+ {[%emt 0:01:25]} Nbd7 {[%emt 0:00:33]} 8. a4 {[%emt 0:00:34]} a6 {[%emt 0:01:06]} 9. Be2 {[%emt 0:01:18]} b6 {[%emt 0:00:43]} 10. Nf3 {[%emt 0:00:39]} g5 {[%emt 0:02:12]} 11. Be3 {[%emt 0:00:49]} Rb8 {[%emt 0:02:03]} 12. h3 {[%emt 0:01:04]} Kf8 {[%emt 0:01:11]} 13. Nh2 {[%emt 0:01:04]} b5 {[%emt 0:00:41]} 14. axb5 {[%emt 0:02:30]} axb5 {[%emt 0:00:27]} 15. Bxb5 {[%emt 0:01:06]} Nxe4 {[%emt 0:01:46]} 16. Nxe4 {[%emt 0:00:27]} Rxb5 {[%emt 0:00:27]} 17. f4 {[%emt 0:01:09]} Rb4 {[%emt 0:03:02]} 18. Ng3 {[%emt 0:01:30]} Nb6 {[%emt 0:00:56]} 19. c3 {[%emt 0:01:42]} Nc4 {[%emt 0:02:23]} 20. Qe2 {[%emt 0:00:44]} Nxe3 {[%emt 0:00:43]} 21. cxb4 {[%emt 0:01:00]} gxf4 {[%emt 0:00:35]} 22. Nh5 {[%emt 0:00:39]} Be5 {[%emt 0:00:42]} 23. Ra8 {[%emt 0:01:40]} f5 {[%emt 0:02:01]} 24. Nf3 {[%emt 0:01:48]} Kf7 {[%emt 0:00:37]} 25. bxc5 {[%emt 0:00:30]} Rg8 {[%emt 0:00:45]} 26. g3 {[%emt 0:01:26]} Qc7 {[%emt 0:00:54]} 27. gxf4 {[%emt 0:01:37]} Qxc5 {[%emt 0:00:27]} 28. Rxc8 {[%emt 0:00:58]} Rxc8 {[%emt 0:00:32]} 29. Qxe3 {[%emt 0:00:35]} Qxe3+ {[%emt 0:00:26]} 0-1

[Event "9th RTU Rapid 2019"]
[Site "Riga"]
[Date "2019.08.04"]
[Round "8.15"]
[White "Chibukhchyan, Erik"]
[Black "Nair, Sanjeev"]
[Result "1-0"]
[ECO "B55"]
[WhiteElo "2231"]
[BlackElo "1841"]
[Annotator "NA"]
[PlyCount "81"]
[EventDate "2019.08.05"]
[EventType "swiss"]
[EventCountry "LAT"]
[SourceTitle "playchess.com"]
[Source "ChessBase"]
[SourceQuality "1"]
[TimeControl "5400+30"]

1. e4 {[%emt 1:15:21]} c5 {[%emt 1:15:23]} 2. Nf3 {[%emt 0:00:27]} d6 {[%emt 0:00:26]} 3. d4 {[%emt 0:00:25]} cxd4 {[%emt 0:00:26]} 4. Nxd4 {[%emt 0:00:26]} Nf6 {[%emt 0:00:27]} 5. f3 {[%emt 0:00:26]} e5 {[%emt 0:00:44]} 6. Nb3 {[%emt 0:00:27]} Be6 {[%emt 0:00:30]} 7. c4 {[%emt 0:00:26]} a5 {[%emt 0:00:26]} 8. Be3 {[%emt 0:00:37]} a4 {[%emt 0:00:28]} 9. N3d2 {[%emt 0:00:26]} Be7 {[%emt 0:00:31]} 10. Na3 {[%emt 0:00:26]} O-O {[%emt 0:00:40]} 11. Be2 {[%emt 0:00:01]} Qa5 12. O-O {[%emt 0:01:06]} Bd8 {[%emt 0:01:07]} 13. Kh1 {[%emt 0:01:51]} Bb6 {[%emt 0:01:10]} 14. c5 Bxc5 {[%emt 0:01:51]} 15. Ndc4 {[%emt 0:00:51]} Bxc4 {[%emt 0:03:06]} 16. Nxc4 {[%emt 0:00:26]} Qc7 {[%emt 0:00:43]} 17. Bxc5 {[%emt 0:00:27]} dxc5 {[%emt 0:00:44]} 18. Qd6 {[%emt 0:01:16]} Qxd6 {[%emt 0:01:46]} 19. Nxd6 {[%emt 0:00:27]} Nc6 {[%emt 0:02:23]} 20. Nxb7 {[%emt 0:02:57]} Rfb8 {[%emt 0:00:34]} 21. Nxc5 {[%emt 0:00:29]} Rxb2 {[%emt 0:00:29]} 22. Bc4 {[%emt 0:01:20]} Rc8 {[%emt 0:01:53]} 23. Nd3 {[%emt 0:00:35]} Rc2 {[%emt 0:00:29]} 24. Rac1 {[%emt 0:00:54]} Rxc1 {[%emt 0:01:02]} 25. Rxc1 {[%emt 0:00:26]} Rd8 {[%emt 0:01:37]} 26. Kg1 {[%emt 0:01:01]} Kf8 {[%emt 0:00:48]} 27. Kf2 {[%emt 0:00:26]} Ke7 {[%emt 0:01:26]} 28. Ke3 {[%emt 0:00:26]} Rb8 {[%emt 0:00:44]} 29. Bxf7 {[%emt 0:00:41]} Kd6 {[%emt 0:00:40]} 30. Rd1 {[%emt 0:01:35]} Ke7 {[%emt 0:01:02]} 31. Bc4 {[%emt 0:00:30]} Nd7 {[%emt 0:00:27]} 32. Rc1 {[%emt 0:01:34]} Kf6 {[%emt 0:00:49]} 33. Bd5 {[%emt 0:00:34]} Ne7 {[%emt 0:00:48]} 34. Bc6 {[%emt 0:00:29]} Nb6 {[%emt 0:00:30]} 35. Rc5 {[%emt 0:01:53]} Ng6 {[%emt 0:01:10]} 36. Bb5 {[%emt 0:00:32]} Rb7 {[%emt 0:00:35]} 37. g3 {[%emt 0:00:30]} h5 {[%emt 0:00:26]} 38. h4 {[%emt 0:00:26]} Nd7 {[%emt 0:00:33]} 39. Bxd7 {[%emt 0:00:43]} Rxd7 {[%emt 0:00:25]} 40. Rc6+ {[%emt 0:00:26]} Kf7 {[%emt 0:00:36]} 41. Rxg6 {[%emt 0:00:30]} 1-0

[Event "9th RTU Rapid 2019"]
[Site "Riga"]
[Date "2019.08.04"]
[Round "8.16"]
[White "Nevednichy, Vladislav"]
[Black "Radkov, Bazhen D."]
[Result "1-0"]
[ECO "C50"]
[WhiteElo "2495"]
[BlackElo "2133"]
[Annotator "ChessBase"]
[PlyCount "121"]
[EventDate "2019.08.05"]
[EventType "swiss"]
[EventCountry "LAT"]
[SourceTitle "playchess.com"]
[Source "ChessBase"]
[SourceQuality "1"]
[TimeControl "5400+30"]

1. e4 {[%emt 1:15:25]} e5 {[%emt 1:15:37]} 2. Bc4 {[%emt 0:00:24]} Nf6 {[%emt 0:00:40]} 3. d3 {[%emt 0:00:27]} Nc6 {[%emt 0:00:34]} 4. Nf3 {[%emt 0:00:29]} Bc5 {[%emt 0:00:35]} 5. Nc3 {[%emt 0:00:30]} a6 {[%emt 0:01:19]} 6. Bg5 {[%emt 0:00:34]} h6 {[%emt 0:00:42]} 7. Bxf6 {[%emt 0:00:27]} Qxf6 {[%emt 0:00:27]} 8. Nd5 {[%emt 0:00:26]} Qd8 {[%emt 0:00:27]} 9. c3 {[%emt 0:00:29]} d6 {[%emt 0:00:38]} 10. d4 {[%emt 0:00:28]} Ba7 {[%emt 0:00:40]} 11. dxe5 {[%emt 0:00:35]} Nxe5 {[%emt 0:01:19]} 12. Nxe5 {[%emt 0:00:30]} dxe5 {[%emt 0:00:27]} 13. Qh5 {[%emt 0:00:51]} O-O {[%emt 0:01:22]} 14. Qxe5 {[%emt 0:01:52]} Re8 {[%emt 0:01:21]} 15. Qf4 {[%emt 0:00:30]} b5 {[%emt 0:02:10]} 16. Bb3 {[%emt 0:01:15]} Bb8 {[%emt 0:02:23]} 17. Ne3 {[%emt 0:00:58]} Qe7 {[%emt 0:00:44]} 18. O-O-O {[%emt 0:01:02]} c6 {[%emt 0:01:01]} 19. Qf3 {[%emt 0:00:31]} a5 {[%emt 0:01:16]} 20. Nf5 {[%emt 0:01:30]} Qf6 {[%emt 0:00:43]} 21. Kb1 {[%emt 0:01:40]} a4 {[%emt 0:01:38]} 22. Bc2 {[%emt 0:02:23]} Be5 {[%emt 0:00:52]} 23. a3 {[%emt 0:01:20]} Be6 {[%emt 0:01:06]} 24. Nd4 {[%emt 0:01:08]} Qg6 {[%emt 0:00:39]} 25. Nxe6 {[%emt 0:01:11]} Qxe6 {[%emt 0:00:29]} 26. g3 {[%emt 0:01:08]} c5 {[%emt 0:01:30]} 27. Rd5 {[%emt 0:00:29]} b4 {[%emt 0:00:56]} 28. cxb4 {[%emt 0:00:36]} cxb4 29. axb4 {[%emt 0:00:26]} Qb6 {[%emt 0:01:14]} 30. b5 {[%emt 0:00:49]} Ra5 {[%emt 0:01:02]} 31. Qd3 {[%emt 0:01:09]} g6 {[%emt 0:01:02]} 32. f4 {[%emt 0:00:42]} Bg7 {[%emt 0:00:31]} 33. Rd1 {[%emt 0:00:34]} Raa8 {[%emt 0:00:44]} 34. Ka2 {[%emt 0:00:33]} Qf6 {[%emt 0:00:33]} 35. e5 {[%emt 0:00:27]} Qe6 {[%emt 0:00:27]} 36. h4 {[%emt 0:01:11]} Bf8 {[%emt 0:00:33]} 37. f5 {[%emt 0:00:32]} gxf5 {[%emt 0:00:34]} 38. Qxf5 {[%emt 0:00:26]} Qxf5 {[%emt 0:00:30]} 39. Bxf5 {[%emt 0:00:26]} a3 {[%emt 0:00:26]} 40. b3 {[%emt 0:00:42]} Bg7 {[%emt 0:00:27]} 41. Re1 {[%emt 0:00:30]} Rad8 {[%emt 0:00:34]} 42. Rxd8 {[%emt 0:00:33]} Rxd8 {[%emt 0:00:26]} 43. b6 {[%emt 0:00:27]} Rb8 {[%emt 0:00:31]} 44. e6 {[%emt 0:00:27]} fxe6 {[%emt 0:00:29]} 45. Rxe6 {[%emt 0:00:31]} Bd4 {[%emt 0:00:34]} 46. Rxh6 {[%emt 0:00:32]} Rxb6 {[%emt 0:00:28]} 47. Rxb6 {[%emt 0:00:46]} Bxb6 {[%emt 0:00:26]} 48. b4 {[%emt 0:00:35]} Bf2 {[%emt 0:00:28]} 49. g4 {[%emt 0:00:29]} Bxh4 {[%emt 0:00:28]} 50. Kxa3 {[%emt 0:00:25]} Kf7 {[%emt 0:00:36]} 51. b5 {[%emt 0:00:41]} Bf2 {[%emt 0:00:27]} 52. Kb4 {[%emt 0:00:28]} Ke7 {[%emt 0:00:26]} 53. Ka5 {[%emt 0:00:32]} Kd6 {[%emt 0:00:30]} 54. b6 {[%emt 0:00:31]} Kc6 {[%emt 0:00:39]} 55. Be4+ {[%emt 0:00:27]} Kd7 {[%emt 0:00:28]} 56. g5 {[%emt 0:00:30]} Kc8 {[%emt 0:00:33]} 57. g6 {[%emt 0:00:27]} Bd4 {[%emt 0:00:27]} 58. Kb5 {[%emt 0:00:26]} Kb8 {[%emt 0:00:27]} 59. Kc6 {[%emt 0:00:29]} Bg7 {[%emt 0:00:29]} 60. Kd7 {[%emt 0:00:28]} Bd4 {[%emt 0:00:26]} 61. b7 {[%emt 0:00:27]} 1-0

[Event "9th RTU Rapid 2019"]
[Site "Riga"]
[Date "2019.08.04"]
[Round "8.17"]
[White "Laimins, Lauris"]
[Black "Bulmaga, Irina"]
[Result "1-0"]
[ECO "B21"]
[WhiteElo "2123"]
[BlackElo "2434"]
[Annotator "NA"]
[PlyCount "121"]
[EventDate "2019.08.05"]
[EventType "swiss"]
[EventCountry "LAT"]
[SourceTitle "playchess.com"]
[Source "ChessBase"]
[SourceQuality "1"]
[TimeControl "5400+30"]

1. e4 {[%emt 1:16:05]} c5 {[%emt 1:15:22]} 2. f4 {[%emt 0:00:27]} Nc6 {[%emt 0:00:28]} 3. Nf3 {[%emt 0:00:41]} d6 {[%emt 0:00:30]} 4. c3 {[%emt 0:00:31]} Bg4 {[%emt 0:00:29]} 5. h3 {[%emt 0:00:27]} Bxf3 {[%emt 0:00:33]} 6. Qxf3 {[%emt 0:00:27]} g6 {[%emt 0:00:45]} 7. d3 {[%emt 0:00:50]} Bg7 {[%emt 0:00:29]} 8. a4 {[%emt 0:00:59]} e6 {[%emt 0:00:33]} 9. Na3 {[%emt 0:00:32]} Nge7 {[%emt 0:00:33]} 10. Be2 {[%emt 0:00:38]} O-O {[%emt 0:01:04]} 11. O-O {[%emt 0:00:27]} f5 {[%emt 0:00:26]} 12. exf5 {[%emt 0:01:07]} exf5 {[%emt 0:00:49]} 13. Qf2 {[%emt 0:01:12]} Qd7 {[%emt 0:00:39]} 14. Bd2 {[%emt 0:00:57]} b6 {[%emt 0:00:34]} 15. Bf3 {[%emt 0:00:36]} d5 {[%emt 0:00:31]} 16. Nc2 {[%emt 0:00:50]} Kh8 {[%emt 0:00:47]} 17. Kh1 {[%emt 0:00:54]} Ng8 {[%emt 0:00:34]} 18. Rab1 {[%emt 0:02:04]} Rac8 {[%emt 0:02:06]} 19. Rfe1 {[%emt 0:00:56]} Nf6 {[%emt 0:00:29]} 20. b3 {[%emt 0:00:28]} Rcd8 {[%emt 0:01:44]} 21. Rbd1 {[%emt 0:01:46]} Na5 {[%emt 0:00:41]} 22. Rb1 {[%emt 0:00:32]} c4 {[%emt 0:00:33]} 23. Nd4 {[%emt 0:00:38]} cxd3 {[%emt 0:01:25]} 24. Ne6 {[%emt 0:00:44]} Ne4 {[%emt 0:00:26]} 25. Bxe4 {[%emt 0:00:29]} dxe4 {[%emt 0:00:32]} 26. Nxf8 {[%emt 0:00:35]} Rxf8 {[%emt 0:00:29]} 27. c4 {[%emt 0:01:44]} Nc6 {[%emt 0:00:32]} 28. Be3 {[%emt 0:00:42]} Nd4 {[%emt 0:00:42]} 29. Rec1 {[%emt 0:01:06]} Rd8 {[%emt 0:00:45]} 30. c5 {[%emt 0:00:53]} bxc5 {[%emt 0:01:50]} 31. Rxc5 {[%emt 0:00:33]} a6 {[%emt 0:01:20]} 32. Rc4 {[%emt 0:02:13]} h6 {[%emt 0:01:01]} 33. b4 {[%emt 0:00:39]} Nc2 {[%emt 0:01:39]} 34. Rxc2 {[%emt 0:00:33]} dxc2 {[%emt 0:00:26]} 35. Qxc2 {[%emt 0:00:27]} Qd3 {[%emt 0:01:20]} 36. Qxd3 {[%emt 0:01:21]} Rxd3 {[%emt 0:00:27]} 37. Bc5 {[%emt 0:01:03]} Bd4 {[%emt 0:02:35]} 38. Bxd4+ {[%emt 0:00:41]} Rxd4 {[%emt 0:00:26]} 39. b5 {[%emt 0:00:33]} axb5 {[%emt 0:00:26]} 40. axb5 Rd7 41. b6 {[%emt 0:00:55]} Rb7 {[%emt 0:00:51]} 42. g4 {[%emt 0:00:33]} Kg7 {[%emt 0:00:28]} 43. Kg2 {[%emt 0:00:25]} Kf6 {[%emt 0:00:26]} 44. Kf2 {[%emt 0:00:27]} Ke6 {[%emt 0:00:46]} 45. Ke3 {[%emt 0:00:27]} Kd6 {[%emt 0:00:39]} 46. gxf5 {[%emt 0:00:26]} gxf5 {[%emt 0:00:26]} 47. Rb5 {[%emt 0:00:26]} Ke6 {[%emt 0:01:09]} 48. h4 {[%emt 0:00:38]} Rb8 {[%emt 0:01:35]} 49. b7 {[%emt 0:00:44]} Kd6 {[%emt 0:00:26]} 50. Kd4 {[%emt 0:00:34]} Kc6 {[%emt 0:00:53]} 51. Rxf5 {[%emt 0:00:30]} Rxb7 {[%emt 0:00:41]} 52. Rf6+ {[%emt 0:00:32]} Kb5 {[%emt 0:00:26]} 53. Kxe4 {[%emt 0:00:32]} Kc5 {[%emt 0:00:37]} 54. Rxh6 {[%emt 0:00:32]} Re7+ {[%emt 0:00:26]} 55. Kf5 {[%emt 0:00:05]} Kd5 {[%emt 0:00:01]} 56. h5 {[%emt 0:00:56]} Rf7+ {[%emt 0:00:50]} 57. Rf6 {[%emt 0:00:26]} Ra7 {[%emt 0:00:32]} 58. h6 {[%emt 0:00:28]} Ra2 {[%emt 0:00:37]} 59. h7 {[%emt 0:00:36]} Rh2 {[%emt 0:00:26]} 60. Kg6 {[%emt 0:00:26]} Ke4 {[%emt 0:00:31]} 61. Kg7 {[%emt 0:00:27]} 1-0